fUST/lending_fUST_20260120
["ID","MTS","AMOUNT","RATE_DAILY","PERIOD"]
[402736276,1768866640038,-478.75725327,0.00012553,2]
[402736278,1768866640047,-227.07,0.00012802,2]
[402736280,1768866640056,-494.39702115,0.00012827,2]
[402736282,1768866640066,-817.0350454,0.00012982,2]
[402736284,1768866640075,-3532.622286,0.00012982,2]
[402736286,1768866640084,-1002.05340803,0.00013,2]
[402736288,1768866640094,-729.0,0.00013034,2]
[402736289,1768866640103,-2398.4119403,0.00013079,2]
[402736290,1768866640111,-496.47127164,0.00013101,2]
[402736291,1768866640121,-451.78767635,0.00013198,2]
[402736293,1768866640132,-281.7268379,0.00013234,2]
[402736295,1768866640145,-500.0,0.00013273,2]
[402736297,1768866640154,-500.0,0.00013273,2]
[402736298,1768866640163,-440.24648614,0.00013273,2]
[402736300,1768866640173,-577.86190151,0.00013273,2]
[402736301,1768866640183,-500.0,0.00013273,2]
[402736302,1768866640192,-500.0,0.00013273,2]
[402736303,1768866640202,-500.0,0.00013273,2]
[402736304,1768866640212,-500.0,0.00013273,2]
[402736305,1768866640221,-524.62460419,0.00013273,2]
[402736306,1768866640230,-500.0,0.00013273,2]
[402736307,1768866640241,-500.0,0.00013273,2]
[402736308,1768866640250,-500.0,0.00013273,2]
[402736309,1768866640259,-500.0,0.00013273,2]
[402736310,1768866640269,-500.0,0.00013273,2]
[402736311,1768866640278,-158.02789199,0.00013273,2]
[402736312,1768866640287,-500.0,0.00013273,2]
[402736313,1768866640297,-500.0,0.00013273,2]
[402736314,1768866640306,-500.0,0.00013273,2]
[402736315,1768866640316,-500.0,0.00013273,2]
[402736316,1768866640326,-158.02547397,0.00013273,2]
[402736317,1768866640335,-500.0,0.00013273,2]
[402736318,1768866640344,-500.0,0.00013273,2]
[402736319,1768866640354,-500.0,0.00013273,2]
[402736320,1768866640363,-500.0,0.00013273,2]
[402736321,1768866640374,-500.0,0.00013273,2]
[402736322,1768866640384,-500.0,0.00013273,2]
[402736323,1768866640393,-214.90304718,0.00013273,2]
[402736324,1768866640403,-500.43037158,0.00013273,2]
[402736325,1768866640412,-211.00050078,0.00013273,2]
[402736326,1768866640421,-186.59987911,0.00013273,2]
[402736327,1768866640430,-500.0,0.00013273,2]
[402736328,1768866640440,-500.0,0.00013273,2]
[402736329,1768866640450,-500.0,0.00013273,2]
[402736330,1768866640459,-500.0,0.00013273,2]
[402736331,1768866640468,-500.0,0.00013273,2]
[402736332,1768866640478,-500.0,0.00013273,2]
[402736333,1768866640488,-500.0,0.00013273,2]
[402736334,1768866640497,-3876.0,0.00013354,2]
[402736335,1768866640506,-475.0,0.0001338,2]
[402736336,1768866640517,-475.0,0.0001338,2]
[402736337,1768866640526,-475.0,0.000134,2]
[402736338,1768866640535,-475.0,0.000134,2]
[402736339,1768866640544,-2000.0,0.000134,2]
[402736340,1768866640554,-475.0,0.00013425,2]
[402736341,1768866640563,-1041.66666667,0.00013443,2]
[402736342,1768866640572,-160.0,0.00013443,2]
[402736343,1768866640580,-255.45,0.00013513,2]
[402736344,1768866640590,-377.1283076,0.00013589,2]
[402736345,1768866640599,-729.0,0.00013594,2]
[402736346,1768866640609,-2487.15318209,0.00013627,2]
[402736347,1768866640618,-587.0,0.00013627,2]
[402736348,1768866640627,-528.78424287,0.00013649,2]
[402736349,1768866640637,-398.16629828,0.00013673,2]
[402736350,1768866640646,-300.0,0.00013673,2]
[402736351,1768866640655,-500.0,0.00013698,2]
[402736352,1768866640665,-500.0,0.00013698,2]
[402736353,1768866640674,-291.2501499,0.00013698,2]
[402736354,1768866640684,-500.0,0.00013698,2]
[402736355,1768866640693,-500.0,0.00013698,2]
[402736356,1768866640702,-500.0,0.00013698,2]
[402736357,1768866640711,-500.0,0.00013698,2]
[402736358,1768866640720,-500.0,0.00013698,2]
[402736359,1768866640730,-500.0,0.00013698,2]
[402736360,1768866640739,-500.0,0.00013698,2]
[402736361,1768866640748,-589.78946072,0.00013698,2]
[402736362,1768866640758,-500.0,0.00013698,2]
[402736363,1768866640767,-500.0,0.00013698,2]
[402736364,1768866640776,-500.0,0.00013698,2]
[402736365,1768866640785,-500.0,0.00013698,2]
[402736366,1768866640794,-500.0,0.00013698,2]
[402736367,1768866640804,-500.0,0.00013698,2]
[402736369,1768866640813,-500.0,0.00013698,2]
[402736371,1768866640822,-500.0,0.00013698,2]
[402736373,1768866640831,-205.43703056,0.00013698,2]
[402736374,1768866640840,-500.0,0.00013698,2]
[402736375,1768866640849,-500.0,0.00013698,2]
[402736376,1768866640858,-500.0,0.00013698,2]
[402736377,1768866640867,-500.0,0.00013698,2]
[402736379,1768866640876,-500.0,0.00013698,2]
[402736381,1768866640885,-500.0,0.00013698,2]
[402736383,1768866640894,-500.0,0.00013698,2]
[402736385,1768866640904,-500.0,0.00013698,2]
[402736387,1768866640913,-500.0,0.00013698,2]
[402736389,1768866640922,-500.0,0.00013698,2]
[402736391,1768866640932,-500.0,0.00013698,2]
[402736393,1768866640941,-500.0,0.00013698,2]
[402736395,1768866640951,-500.0,0.00013698,2]
[402736397,1768866640960,-500.0,0.00013698,2]
[402736399,1768866640970,-500.0,0.00013698,2]
[402736401,1768866640979,-500.0,0.00013698,2]
[402736403,1768866640988,-579.09160879,0.00013698,2]
[402736405,1768866640997,-1000.0,0.00013698,2]
[402736407,1768866641007,-1000.0,0.00013698,2]
[402736409,1768866641016,-1000.0,0.00013698,2]
[402736411,1768866641026,-1000.0,0.00013698,2]
[402736413,1768866641035,-1000.0,0.00013698,2]
[402736415,1768866641044,-1000.0,0.00013698,2]
[402736417,1768866641053,-1000.0,0.00013698,2]
[402736418,1768866641061,-1019.17213815,0.00013698,2]
[402736419,1768866641070,-954.13,0.00013698,2]
[402736420,1768866641079,-954.13,0.00013698,2]
[402736421,1768866641088,-954.13,0.00013698,2]
[402736422,1768866641097,-954.13,0.00013698,2]
[402736423,1768866641106,-954.13,0.00013698,2]
[402736424,1768866641115,-954.13,0.00013698,2]
[402736425,1768866641124,-954.13,0.00013698,2]
[402736426,1768866641137,-954.13,0.00013698,2]
[402736427,1768866641146,-954.13,0.00013698,2]
[402736428,1768866641155,-954.13,0.00013698,2]
[402736429,1768866641164,-954.13,0.00013698,2]
[402736430,1768866641175,-954.13,0.00013698,2]
[402736431,1768866641184,-954.13,0.00013698,2]
[402736432,1768866641193,-954.13,0.00013698,2]
[402736433,1768866641203,-954.13,0.00013698,2]
[402736434,1768866641212,-954.13,0.00013698,2]
[402736435,1768866641221,-954.13,0.00013698,2]
[402736436,1768866641231,-954.13,0.00013698,2]
[402736437,1768866641240,-954.13,0.00013698,2]
[402736438,1768866641249,-954.13,0.00013698,2]
[402736439,1768866641258,-3133.42,0.00013698,2]
[402736440,1768866641267,-954.13,0.00013698,2]
[402736441,1768866641276,-3133.42,0.00013698,2]
[402736442,1768866641285,-3133.42,0.00013698,2]
[402736443,1768866641293,-954.13,0.00013698,2]
[402736444,1768866641302,-3133.42,0.00013698,2]
[402736445,1768866641311,-954.13,0.00013698,2]
[402736446,1768866641319,-3133.42,0.00013698,2]
[402736447,1768866641328,-954.29907998,0.00013698,2]
[402736448,1768866641337,-3133.42,0.00013698,2]
[402736449,1768866641345,-3133.42,0.00013698,2]
[402736450,1768866641354,-3133.42,0.00013698,2]
[402736451,1768866641363,-3133.42,0.00013698,2]
[402736453,1768866641372,-3133.42,0.00013698,2]
[402736454,1768866641380,-3133.42,0.00013698,2]
[402736455,1768866641389,-3133.42,0.00013698,2]
[402736456,1768866641398,-3133.42,0.00013698,2]
[402736457,1768866641407,-3133.42,0.00013698,2]
[402736459,1768866641416,-3133.42,0.00013698,2]
[402736461,1768866641426,-3133.42,0.00013698,2]
[402736463,1768866641436,-3133.42,0.00013698,2]
[402736465,1768866641446,-3133.42,0.00013698,2]
[402736467,1768866641455,-3133.42,0.00013698,2]
[402736469,1768866641464,-3133.42,0.00013698,2]
[402736471,1768866641473,-3133.42,0.00013698,2]
[402736473,1768866641482,-3133.42,0.00013698,2]
[402736475,1768866641491,-3133.42,0.00013698,2]
[402736477,1768866641500,-3133.5769842,0.00013698,2]
[402736479,1768866641509,-500.0,0.00013698,2]
[402736481,1768866641519,-500.0,0.00013698,2]
[402736483,1768866641528,-500.0,0.00013698,2]
[402736485,1768866641537,-500.0,0.00013698,2]
[402736487,1768866641546,-500.0,0.00013698,2]
[402736489,1768866641555,-500.0,0.00013698,2]
[402736491,1768866641564,-500.0,0.00013698,2]
[402736493,1768866641573,-218.61799449,0.00013698,2]
[402736495,1768866641582,-522.36155951,0.00013698,2]
[402736497,1768866641591,-567.90474822,0.00013698,2]
[402736499,1768866641600,-1975.23,0.00013698,2]
[402736501,1768866641609,-1975.23,0.00013698,2]
[402736503,1768866641618,-1975.23,0.00013698,2]
[402736505,1768866641627,-1975.23,0.00013698,2]
[402736507,1768866641636,-1975.23,0.00013698,2]
[402736509,1768866641645,-1975.23,0.00013698,2]
[402736511,1768866641654,-1975.23,0.00013698,2]
[402736513,1768866641664,-1975.23,0.00013698,2]
[402736515,1768866641674,-1975.23,0.00013698,2]
[402736517,1768866641684,-1975.23,0.00013698,2]
[402736519,1768866641694,-1975.23,0.00013698,2]
[402736521,1768866641703,-1975.23,0.00013698,2]
[402736523,1768866641713,-1975.23,0.00013698,2]
[402736525,1768866641722,-1975.23,0.00013698,2]
[402736527,1768866641732,-1975.23,0.00013698,2]
[402736529,1768866641741,-1975.23,0.00013698,2]
[402736531,1768866641750,-1975.23,0.00013698,2]
[402736533,1768866641760,-1975.23,0.00013698,2]
[402736535,1768866641769,-1975.23,0.00013698,2]
[402736537,1768866641779,-1975.23,0.00013698,2]
[402736539,1768866641796,-1975.23,0.00013698,2]
[402736541,1768866641815,-1975.23,0.00013698,2]
[402736543,1768866641832,-1975.23,0.00013698,2]
[402736545,1768866641842,-1975.44292314,0.00013698,2]
[402736547,1768866641854,-772.19,0.00013698,2]
[402736548,1768866641865,-772.19,0.00013698,2]
[402736551,1768866641877,-772.19,0.00013698,2]
[402736553,1768866641888,-772.19,0.00013698,2]
[402736554,1768866641898,-772.19,0.00013698,2]
[402736556,1768866641910,-772.19,0.00013698,2]
[402736558,1768866641919,-772.19,0.00013698,2]
[402736560,1768866641928,-772.19,0.00013698,2]
[402736562,1768866641938,-772.19,0.00013698,2]
[402736564,1768866641947,-772.19,0.00013698,2]
[402736566,1768866641956,-772.19,0.00013698,2]
[402736569,1768866641966,-772.19,0.00013698,2]
[402736571,1768866641975,-772.19,0.00013698,2]
[402736573,1768866641984,-772.19,0.00013698,2]
[402736575,1768866641993,-772.19,0.00013698,2]
[402736577,1768866642003,-772.19,0.00013698,2]
[402736579,1768866642013,-772.19,0.00013698,2]
[402736581,1768866642026,-772.19,0.00013698,2]
[402736583,1768866642035,-772.19,0.00013698,2]
[402736585,1768866642045,-772.19,0.00013698,2]
[402736587,1768866642054,-772.19,0.00013698,2]
[402736589,1768866642064,-772.19,0.00013698,2]
[402736591,1768866642073,-772.19,0.00013698,2]
[402736593,1768866642082,-772.23,0.00013698,2]
[402736595,1768866642091,-1005.49,0.00013698,2]
[402736597,1768866642101,-1005.49,0.00013698,2]
[402736599,1768866642110,-1005.49,0.00013698,2]
[402736601,1768866642119,-1005.49,0.00013698,2]
[402736603,1768866642129,-1005.49,0.00013698,2]
[402736605,1768866642142,-1005.49,0.00013698,2]
[402736607,1768866642151,-1005.49,0.00013698,2]
[402736609,1768866642160,-1005.49,0.00013698,2]
[402736611,1768866642169,-1005.49,0.00013698,2]
[402736613,1768866642180,-1005.49,0.00013698,2]
[402736615,1768866642189,-1005.49,0.00013698,2]
[402736617,1768866642198,-10000.0,0.00013699,10]
[402736619,1768866642207,-5200.0,0.00013699,10]
[402736621,1768866642217,-500.0,0.00013699,2]
[402736623,1768866642230,-500.0,0.00013699,2]
[402736625,1768866642239,-34811.5476418,0.00013699,2]
[402736627,1768866642248,-1218.747352,0.00013699,2]
[402736629,1768866642257,-7721.19674447,0.00013699,2]
[402736631,1768866642266,-151.0,0.00013699,2]
[402736633,1768866642275,-151.0,0.00013699,2]
[402736635,1768866642285,-163.134974,0.00013699,2]
[402736637,1768866642294,-1000.0,0.00013699,2]
[402736639,1768866642303,-500.0,0.00013699,2]
[402736640,1768866642312,-500.0,0.00013699,2]
[402736642,1768866642321,-500.0,0.00013699,2]
[402736645,1768866642331,-500.0,0.00013699,2]
[402736647,1768866642340,-500.0,0.00013699,2]
[402736648,1768866642350,-500.0,0.00013699,2]
[402736650,1768866642359,-500.0,0.00013699,2]
[402736652,1768866642368,-500.0,0.00013699,2]
[402736654,1768866642378,-500.0,0.00013699,2]
[402736657,1768866642388,-500.0,0.00013699,2]
[402736658,1768866642397,-500.0,0.00013699,2]
[402736661,1768866642407,-160.02624158,0.00013699,2]
[402736663,1768866642416,-320.04623118,0.00013699,2]
[402736665,1768866642426,-500.0,0.00013699,2]
[402736666,1768866642435,-500.0,0.00013699,2]
[402736669,1768866642446,-500.0,0.00013699,2]
[402736671,1768866642455,-186.53198003,0.00013699,2]
[402736673,1768866642464,-500.0,0.00013699,2]
[402736675,1768866642474,-500.0,0.00013699,2]
[402736677,1768866642482,-500.0,0.00013699,2]
[402736679,1768866642492,-500.0,0.00013699,2]
[402736681,1768866642501,-500.0,0.00013699,2]
[402736682,1768866642511,-500.0,0.00013699,2]
[402736685,1768866642520,-160.0297928,0.00013699,2]
[402736687,1768866642530,-500.0,0.00013699,2]
[402736689,1768866642539,-500.0,0.00013699,2]
[402736691,1768866642548,-238.24022298,0.00013699,2]
[402736693,1768866642558,-238.0443177,0.00013699,2]
[402736695,1768866642567,-313.78216061,0.00013699,2]
[402736697,1768866642576,-500.0,0.00013699,2]
[402736699,1768866642586,-500.0,0.00013699,2]
[402736701,1768866642595,-500.0,0.00013699,2]
[402736702,1768866642604,-158.22949668,0.00013699,2]
[402736705,1768866642613,-158.02945749,0.00013699,2]
[402736706,1768866642623,-500.0,0.00013699,2]
[402736708,1768866642633,-622.93942038,0.00013699,2]
[402736711,1768866642642,-500.0,0.00013699,2]
[402736713,1768866642651,-198.23736057,0.00013699,2]
[402736715,1768866642661,-500.0,0.00013699,2]
[402736717,1768866642670,-500.0,0.00013699,2]
[402736718,1768866642680,-500.0,0.00013699,2]
[402736720,1768866642690,-500.0,0.00013699,2]
[402736739,1768866642846,-500.0,0.00013699,2]
[402736741,1768866642856,-500.0,0.00013699,2]
[402736743,1768866642866,-260.20000005,0.00013699,2]
[402736745,1768866642875,-501.82620036,0.00013699,2]
[402736748,1768866642884,-500.0,0.00013699,2]
[402736751,1768866642893,-500.0,0.00013699,2]
[402736754,1768866642902,-158.0302946,0.00013699,2]
[402736757,1768866642911,-155.02687254,0.00013699,2]
[402736760,1768866642920,-502.61209366,0.00013699,2]
[402736762,1768866642929,-250.52997418,0.00013699,2]
[402736764,1768866642938,-500.0,0.00013699,2]
[402736766,1768866642947,-475.0,0.00013699,2]
[402736768,1768866642958,-200.83217225,0.00013699,2]
[402736770,1768866642967,-2000.0,0.0001371,2]
[402736772,1768866642976,-696.64331645,0.00013821,2]
[402736774,1768866642985,-1000.0,0.00013821,2]
[402736776,1768866642995,-1000.0,0.00013821,2]
[402736777,1768866643004,-453.71259255,0.00013821,2]
[402736779,1768866643014,-505.69222847,0.00013821,2]
[402736781,1768866643023,-1000.0,0.00013821,2]
[402736783,1768866643032,-1000.0,0.00013821,2]
[402736785,1768866643041,-505.25947973,0.00013821,2]
[402736787,1768866643050,-1000.0,0.00013821,2]
[402736789,1768866643060,-1000.0,0.00013821,2]
[402736791,1768866643069,-1000.0,0.00013821,2]
[402736793,1768866643079,-502.83955258,0.00013821,2]
[402736795,1768866643088,-1000.0,0.00013821,2]
[402736797,1768866643097,-1000.0,0.00013821,2]
[402736799,1768866643106,-1000.0,0.00013821,2]
[402736801,1768866643115,-1000.0,0.00013821,2]
[402736803,1768866643125,-1000.0,0.00013821,2]
[402736805,1768866643137,-1000.0,0.00013821,2]
[402736807,1768866643146,-601.16084877,0.00013821,2]
[402736809,1768866643155,-522.04357159,0.00013821,2]
[402736811,1768866643165,-1000.0,0.00013821,2]
[402736813,1768866643175,-2843.56000101,0.00013892,2]
[402736814,1768866643185,-733.0,0.00013907,2]
[402736816,1768866643196,-212.54773642,0.00013989,2]
[402736818,1768866643208,-2000.0,0.0001399,2]
[402736820,1768866643218,-88108.87368826,0.0001399,2]
[402736835,1768866643346,-6979.34107445,0.0001399,2]
[402736837,1768866643358,-3006.69431809,0.0001399,2]
[402736839,1768866643368,-562.31420507,0.0001399,2]
[402736857,1768866643520,-250.0,0.00011457,2]
[402736858,1768866643529,-164.40663093,0.00011457,2]
[402736861,1768866643539,-1005.49,0.00013698,2]
[402736862,1768866643548,-1005.49,0.00013698,2]
[402736865,1768866643558,-1005.49,0.00013698,2]
[402736866,1768866643568,-1005.49,0.00013698,2]
[402736868,1768866643577,-1005.49,0.00013698,2]
[402736870,1768866643586,-1005.49,0.00013698,2]
[402736872,1768866643595,-1005.49,0.00013698,2]
[402736874,1768866643604,-1005.49,0.00013698,2]
[402736876,1768866643614,-1342.77671413,0.0001399,2]
[402736878,1768866643623,-24740.94404332,0.00014,2]
[402736880,1768866643632,-15661.5998367,0.00014018,2]
[402736882,1768866643642,-2879.2228116,0.00014018,2]
[402736884,1768866643651,-2579.17784983,0.00014175,2]
[402736886,1768866643660,-728.0,0.00014218,2]
[402736888,1768866643669,-600.0,0.00014221,2]
[402736890,1768866643678,-283.83,0.00014224,2]
[402736892,1768866643687,-587.52830239,0.00014247,2]
[402736894,1768866643696,-301.38164885,0.00014247,2]
[402736896,1768866643704,-1000.0,0.00014247,2]
[402736898,1768866643714,-920.73215922,0.00014247,2]
[402736900,1768866643724,-505.85156425,0.00014247,2]
[402736902,1768866643733,-505.35037186,0.00014247,2]
[402736904,1768866643743,-1140.95571878,0.00014247,2]
[402736906,1768866643752,-1000.0,0.00014247,2]
[402736908,1768866643760,-310.63775509,0.00014247,2]
[402736910,1768866643770,-1000.0,0.00014247,2]
[402736912,1768866643779,-186.87890316,0.00014247,2]
[402736914,1768866643788,-1000.0,0.00014247,2]
[402736916,1768866643798,-1000.0,0.00014247,2]
[402736918,1768866643807,-1000.0,0.00014247,2]
[402736920,1768866643817,-1000.0,0.00014247,2]
[402736922,1768866643827,-500.85672121,0.00014247,2]
[402736924,1768866643837,-431.73453214,0.00014247,2]
[402736926,1768866643847,-748.3708511,0.00014247,2]
[402736928,1768866643856,-1000.0,0.00014247,2]
[402736930,1768866643866,-1002.84499725,0.00014247,2]
[402736932,1768866643876,-452.77588093,0.00014247,2]
[402736934,1768866643886,-1000.0,0.00014247,2]
[402736936,1768866643895,-1000.0,0.00014247,2]
[402736938,1768866643904,-166.56549792,0.00014247,2]
[402736940,1768866643914,-502.90945713,0.00014247,2]
[402736942,1768866643923,-1000.0,0.00014247,2]
[402736944,1768866643933,-1000.0,0.00014247,2]
[402736946,1768866643941,-500.43334725,0.00014247,2]
[402736948,1768866643951,-1097.74982003,0.00014247,2]
[402736950,1768866643960,-1000.0,0.00014247,2]
[402736951,1768866643969,-1000.0,0.00014247,2]
[402736952,1768866643978,-817.0350454,0.00014336,2]
[402736953,1768866643988,-3532.622286,0.00014336,2]
[402736954,1768866643997,-500.85139614,0.00014368,2]
[402736955,1768866644006,-957.80756667,0.00014368,2]
[402736956,1768866644015,-500.0,0.00014368,2]
[402736957,1768866644025,-1500.0,0.00014368,2]
[402736958,1768866644034,-1500.0,0.00014368,2]
[402736959,1768866644043,-1500.0,0.00014368,2]
[402736960,1768866644052,-1500.0,0.00014368,2]
[402736961,1768866644061,-1500.0,0.00014368,2]
[402736962,1768866644070,-1500.0,0.00014368,2]
[402736963,1768866644079,-154.30188776,0.00014368,2]
[402736964,1768866644088,-1500.0,0.00014368,2]
[402736965,1768866644097,-1500.0,0.00014368,2]
[402736966,1768866644105,-1500.0,0.00014368,2]
[402736967,1768866644115,-1500.0,0.00014368,2]
[402736968,1768866644124,-1234.342,0.00014494,2]
[402736969,1768866644134,-76164.0,0.000145,3]
[402736970,1768866644144,-178.204322,0.000145,7]
[402736971,1768866644153,-5000.0,0.0001451,2]
[402736972,1768866644163,-182.772929,0.00014532,7]
[402736973,1768866644173,-290.320094,0.00014532,7]
[402736974,1768866644182,-199.204556,0.00014532,7]
[402736975,1768866644192,-1973.482131,0.00014532,7]
[402736976,1768866644201,-5469.61032904,0.00014551,2]
[402736977,1768866644210,-184.315392,0.00014551,7]
[402736978,1768866644219,-3494.5752797,0.00014551,2]
[402736979,1768866644229,-642.441447,0.00014551,2]
[402736980,1768866644240,-226.101776,0.00014551,7]
[402736981,1768866644250,-187.752861,0.00014551,7]
[402736982,1768866644259,-183.131389,0.00014551,7]
[402736983,1768866644268,-182.607906,0.00014551,7]
[402736984,1768866644277,-12287.96798989,0.00014594,2]
[402736985,1768866644287,-50000.0,0.00014594,2]
[402736986,1768866644296,-426.734138,0.00014704,7]
[402736987,1768866644306,-180.0360072,0.00014704,2]
[402736988,1768866644315,-2674.60743027,0.00014723,2]
[402736989,1768866644324,-718.0,0.00014737,2]
[402736990,1768866644334,-900.0,0.00014768,2]
[402736991,1768866644342,-1493.74297815,0.00014795,2]
[402736992,1768866644351,-660.83132082,0.00014795,2]
[402736993,1768866644360,-166.91973232,0.00014795,2]
[402736994,1768866644368,-519.10615049,0.00014795,2]
[402736995,1768866644377,-648.13731473,0.00014795,2]
[402736996,1768866644387,-1500.0,0.00014795,2]
[402736997,1768866644397,-1500.0,0.00014795,2]
[402736998,1768866644405,-1500.0,0.00014795,2]
[402736999,1768866644414,-1500.0,0.00014795,2]
[402737000,1768866644423,-502.31117812,0.00014795,2]
[402737001,1768866644432,-1500.0,0.00014795,2]
[402737002,1768866644440,-1500.0,0.00014795,2]
[402737003,1768866644449,-1500.0,0.00014795,2]
[402737004,1768866644458,-3999.0,0.00014838,2]
[402737005,1768866644467,-729.0,0.00014853,2]
[402737006,1768866644476,-768.518829,0.000149,7]
[402737007,1768866644485,-403.96853636,0.000149,2]
[402737008,1768866644495,-403.96853636,0.000149,2]
[402737009,1768866644504,-2000.0,0.00014916,2]
[402737010,1768866644514,-2000.0,0.00014916,2]
[402737011,1768866644523,-1504.15629489,0.00014916,2]
[402737012,1768866644533,-504.04282277,0.00014916,2]
[402737013,1768866644542,-500.0,0.00014916,2]
[402737014,1768866644552,-2000.0,0.00014916,2]
[402737015,1768866644561,-2000.0,0.00014916,2]
[402737016,1768866644570,-2000.0,0.00014916,2]
[402737017,1768866644580,-2000.0,0.00014916,2]
[402737018,1768866644590,-1000.0,0.00014916,2]
[402737019,1768866644599,-911.61838817,0.00014956,11]
[402737020,1768866644608,-823.0,0.0001497,2]
[402737021,1768866644618,-536.11245566,0.00015,2]
[402737022,1768866644627,-681.0,0.00015,7]
[402737023,1768866644638,-2446.77277909,0.00015,2]
[402737024,1768866644647,-1019.59282544,0.00015,2]
[402737025,1768866644656,-90000.0,0.00015,2]
[402737026,1768866644665,-15372.70144397,0.00015,2]
[402737027,1768866644674,-160.08,0.00015,2]
[402737028,1768866644683,-442.0,0.00015,2]
[402737029,1768866644693,-10000.0,0.00015057,2]
[402737030,1768866644702,-1308.98,0.00015057,2]
[402737031,1768866644711,-530.235227,0.00015068,2]
[402737032,1768866644720,-1593.900527,0.00015068,7]
[402737033,1768866644729,-155.9356816,0.00015096,2]
[402737034,1768866644739,-10000.0,0.00015114,2]
[402737036,1768866644748,-10000.0,0.00015114,2]
[402737038,1768866644757,-10000.0,0.00015114,2]
[402737039,1768866644766,-2317.5,0.00015114,2]
[402737040,1768866644776,-3112.71674432,0.00015158,2]
[402737054,1768866646363,-1005.49,0.00013698,2]
[402737055,1768866646373,-1005.49,0.00013698,2]
[402737056,1768866646382,-1005.49,0.00013698,2]
[402737057,1768866646392,-1005.49,0.00013698,2]
[402737058,1768866646401,-1005.49705445,0.00013698,2]
[402737059,1768866646411,-403.96853636,0.000149,2]
[402737060,1768866646420,-763.28325568,0.00015158,2]
[402737061,1768866646431,-390.0,0.00015165,2]
[402737062,1768866646440,-729.0,0.00015173,2]
[402737063,1768866646450,-324.70211826,0.00015234,2]
[402737064,1768866646463,-2773.56790519,0.00015271,2]
[402737065,1768866646472,-1200.0,0.00015316,2]
[402737066,1768866646482,-2000.0,0.00015342,2]
[402737067,1768866646492,-1561.32249094,0.00015342,2]
[402737068,1768866646501,-2000.0,0.00015342,2]
[402737069,1768866646510,-2000.0,0.00015342,2]
[402737070,1768866646520,-1871.99570724,0.00015342,2]
[402737072,1768867115735,500.0,0.00027397,120]
[402737073,1768867115970,500.0,0.00027397,120]
[402737074,1768867116309,246.83516445,0.00027397,120]
[402737105,1768867832365,-169.599,0.00011008,2]
[402737107,1768867832375,-225.45924455,0.00011104,2]
[402737109,1768867832384,-851.7769199,0.00011128,2]
[402737112,1768867832410,-485.38007802,0.00011128,2]
[402737244,1768867838551,-297.08773857,0.00011128,2]
[402737246,1768867838562,-2950.59023495,0.00011128,2]
[402737257,1768867840710,-47986.83777279,0.00011128,2]
[402737398,1768867843650,-4131.12882622,0.00011128,2]
[402737580,1768867846635,-5603.08811105,0.00011128,2]
[402737758,1768868108407,192.0,0.00026548,120]
[402737762,1768868627230,1109.61525456,0.0002739,120]
[402737807,1768869032516,-300.0,0.00011026,2]
[402737809,1768869032526,-161.58761607,0.00011027,2]
[402737811,1768869032536,-192.77412617,0.00011027,2]
[402737813,1768869032545,-500.0,0.00011027,2]
[402737815,1768869032554,-168.27029236,0.00011027,2]
[402737817,1768869032564,-500.0,0.00011027,2]
[402737819,1768869032573,-500.0,0.00011027,2]
[402737821,1768869032583,-325.52046871,0.00011027,2]
[402737823,1768869032592,-500.0,0.00011027,2]
[402737825,1768869032601,-220.95005966,0.00011028,2]